Cogmind - Beta 14 @@@ ROGUE MODE // 2024.10.03 @ 01:11:16 Player: Cereal Killer Result: Destroyed by DAS Turret with DAS Cannon Performance ------------- Evolutions (0) 0 Regions Visited (3) 600 Robots Destroyed (3) 15 Value Destroyed (87) 87 Prototype IDs (8) 160 Alien Tech Used (0) 0 Bonus (-30) -30 TOTAL SCORE: 832 Bonus ------- Friendly Fire -30 Cogmind --------- Core Integrity 0/250 Matter 103/300 Energy 100/100 System Corruption 0% Temperature Cool (0) Movement Rolling (100) Location -10/Exiles Parts ------- > --- POWER (1) -------- (None) > --- PROPULSION (2) --- Compact Wheel > --- UTILITY (2) ------ Small Storage Unit Targeting Computer > --- WEAPON (2) ------- (None) > --- INVENTORY (8) ---- Light Nuclear Core Heat Sink High-capacity Matter Pod (200) Peak State ------------ > --- POWER ------------ Ion Engine > --- PROPULSION ------- Wheel Compact Wheel > --- UTILITY ---------- Small Storage Unit Targeting Computer > --- WEAPON ----------- Beam Cannon Rocket Launcher > --- INVENTORY -------- Ion Engine Light Nuclear Core Compact Wheel Heat Sink High-capacity Matter Pod Small Laser Assault Rifle Datajack [Rating: 9] Favorites ----------- Power Ion Engine Engine Ion Engine Propulsion Compact Wheel Wheel Compact Wheel Utility Small Storage Unit Storage Small Storage Unit Processor Targeting Computer Weapon Assault Rifle Energy Gun EM Pulse Gun Energy Cannon Beam Cannon Ballistic Gun Assault Rifle Launcher Rocket Launcher Special Melee Weapon Datajack Build | -11 -10 -10 -10 ------- Run | Yrd Mat Min Exi Slots Evolved . | . . . . Power . | . . . . Propulsion . | . . . . Utility . | . . . . Weapon . | . . . . Parts Attached 15 | 6 1 2 6 Power 3 | 1 . 1 1 Engine 3 | 1 . 1 1 Core . | . . . . Reactor . | . . . . Propulsion 3 | 2 . . 1 Treads . | . . . . Leg . | . . . . Wheel 3 | 2 . . 1 Hover . | . . . . Flight . | . . . . Utility 2 | 1 1 . . Device . | . . . . Storage 1 | 1 . . . Processor 1 | . 1 . . Hackware . | . . . . Protection . | . . . . Artifact . | . . . . Weapon 7 | 2 . 1 4 Energy Gun 2 | 1 . . 1 Energy Cannon 1 | . . 1 . Ballistic Gun 2 | 1 . . 1 Ballistic Cannon . | . . . . Launcher 1 | . . . 1 Special Weapon . | . . . . Impact Weapon . | . . . . Slashing Weapon . | . . . . Piercing Weapon . | . . . . Special Melee Weapon 1 | . . . 1 Unidentified Prototypes . | . . . . Parts Lost 9 | . . . 9 Power 2 | . . . 2 Propulsion 2 | . . . 2 Utility . | . . . . Weapon 5 | . . . 5 Highest Loss Streak 8 | . . . 8 To Critical Strikes 4 | . . . 4 Average Slot Usage (%) 94 | . 91 100 91 Engine 13 | . 14 14 12 Wheel 26 | . 28 28 24 Storage 14 | . 14 14 14 Processor 12 | . 6 14 14 Energy Gun 6 | . 14 8 1 Energy Cannon 6 | . . 5 8 Ballistic Gun 12 | . 14 14 10 Launcher 1 | . . . 4 Peak Build Rating 9 | 6 7 8 9 Average Rating 6 | 3 6 7 7 On Entrance 5 | . 6 7 8 Naked Turns . | . . . . Heaviest Build 16 | 14 14 15 16 Greatest Support 26 | 26 26 26 26 Greatest Overweight (x) 1 | . . . 1 Average Overweight (x) . | . . . . Largest Inventory Capacity 8 | 8 8 8 8 Average Capacity 7 | 5 8 8 8 Most Carried 8 | 5 6 8 8 Average Carried 6 | 2 4 7 7 Final Capacity 8 | 8 8 8 8 Final Carried 8 | 3 6 8 3 Class Distribution -------------------- 100% | Mutant Dominant Class ---------------- Mutant | -10/Materials Mutant | -10/Mines Mutant | -10/Exiles Resources | -11 -10 -10 -10 ----------- Run | Yrd Mat Min Exi Matter Collected 433 | 266 . 167 . Remotely . | . . . . Salvage Created 205 | 100 . 95 10 Parts 8 | 2 . 6 . Haulers Intercepted . | . . . . Recyclers Shooed . | . . . . Parts Field Recycled . | . . . . Retrieved Matter . | . . . . Parts Self-Destructed . | . . . . Prevented . | . . . . Kills | -11 -10 -10 -10 ------- Run | Yrd Mat Min Exi Combat Hostiles Destroyed 8 | . . 2 6 Guns 2 | . . 2 . Cannons 1 | . . . 1 AOE 5 | . . . 5 Classes Destroyed 3 | 1 . 1 1 Recycler 1 | 1 . . . Grunt 2 | . . 2 . Assembled 6 | . . . 6 Best Kill Streak 6 | 1 . 2 6 Combat Bots Only 6 | . . 2 6 Max Kills in Single Turn 2 | 1 . 1 2 Gunslinging . | . . . . Exploded 2 | . . . 2 Melee . | . . . . Uniques/NPCs Destroyed . | . . . . Combat | -11 -10 -10 -10 -------- Run | Yrd Mat Min Exi Hostile Shots Fired 77 | . . 5 72 Missed 22 | . . 1 21 Damage Taken 921 | . . 58 863 Core 275 | . . 30 245 Absorbed by Shields . | . . . . Core Remaining (%) 100 | 100 . . . Volleys Fired 32 | 2 1 5 24 Largest 2 | 2 2 2 2 Hottest 93 | 60 60 60 93 Shots Fired 55 | 4 2 10 39 Gun 36 | 4 2 10 20 Cannon 6 | . . . 6 Launcher 13 | . . . 13 Special . | . . . . Kinetic 21 | 2 1 5 13 Thermal 13 | . . . 13 Explosive 13 | . . . 13 Electromagnetic 8 | 2 1 5 . Robot Hit Streak 5 | 3 1 5 5 Robot Miss Streak 6 | 1 1 1 6 Penetration Max . | . . . . Secondary Targets 1 | . . 1 . Max Gunslinging Chain 1 | . . 1 . Shots Hit Robots 35 | 3 1 8 23 Core Hits 27 | 2 . 4 21 Critical Kills . | . . . . Critical Parts Destroyed . | . . . . Critical Strikes 1 | . . 1 . Corrupt 1 | . . 1 . Melee Attacks 1 | . . . 1 Impact . | . . . . Slashing . | . . . . Piercing . | . . . . Sneak Attacks . | . . . . Combat Hostiles . | . . . . Follow-up Attacks . | . . . . Damage Inflicted 748 | 40 13 104 591 Guns 242 | 40 13 104 85 Cannons 88 | . . . 88 Explosions 418 | . . . 418 Melee . | . . . . Ramming . | . . . . Kinetic 127 | 10 . 38 79 Thermal 94 | . . . 94 Explosive 418 | . . . 418 Electromagnetic 109 | 30 13 66 . Impact . | . . . . Slashing . | . . . . Piercing . | . . . . Highest Corruption . | . . . . Average Corruption . | . . . . Corruption Purged . | . . . . Corruption Blocked . | . . . . Overload Shots . | . . . . Overflow Damage 2 | . . . 2 Projectiles . | . . . . Explosions 2 | . . . 2 Melee . | . . . . Knockbacks . | . . . . Impact . | . . . . Kinetic . | . . . . Secondary . | . . . . Self-Inflicted Damage 17 | . . . 17 Shots 1 | . . . 1 Rammed . | . . . . Targets Rammed . | . . . . Kicked . | . . . . Crushed . | . . . . Highest Temperature 118 | . . 38 118 Average Temperature 38 | . . 20 43 Received Heat Transfer 96 | . . 36 60 Siege Activations . | . . . . Robots Corrupted . | . . . . Combat Hostiles . | . . . . Parts Fried . | . . . . Impact Corruptions . | . . . . Robots Melted . | . . . . Combat Hostiles . | . . . . Parts Melted . | . . . . Heat Transferred 221 | . . . 221 Parts Sabotaged . | . . . . Parts Stolen . | . . . . Parts Stripped . | . . . . Power Chain Reactions . | . . . . Alert | -11 -10 -10 -10 ------- Run | Yrd Mat Min Exi Peak Influence 50 | 5 3 50 . Initial 3 | . 3 . . Average 27 | 1 3 48 . Maximum Alert Level . | . . . . Low Security (%) 100 | 100 100 100 . Level 1 . | . . . . Level 2 . | . . . . Level 3 . | . . . . Level 4 . | . . . . Level 5 . | . . . . High Security . | . . . . Max Security . | . . . . Squads Dispatched 1 | . 1 . . Investigation . | . . . . Extermination . | . . . . Reinforcement 1 | . 1 . . Assault . | . . . . Garrison . | . . . . Intercept . | . . . . Searches Triggered . | . . . . Construction Impeded . | . . . . Haulers Reinforced . | . . . . Active Scanning Responses . | . . . . Cargo Convoy Interrupts . | . . . . Stealth | -11 -10 -10 -10 --------- Run | Yrd Mat Min Exi Distress Signals . | . . . . Communications Jammed . | . . . . Distress Signals . | . . . . Times Spotted 10 | . 1 1 8 Peak Tracking Total 9 | . 1 1 9 Tactical Retreats . | . . . . Traps | -11 -10 -10 -10 ------- Run | Yrd Mat Min Exi Traps Triggered . | . . . . Indirectly . | . . . . Trap Hack Attempts . | . . . . Triggered . | . . . . Disarmed . | . . . . Reprogrammed . | . . . . Reused . | . . . . Traps Extracted . | . . . . Installed . | . . . . Triggered . | . . . . Machines | -11 -10 -10 -10 ---------- Run | Yrd Mat Min Exi Machines Disabled 4 | . . . 4 Max in Single Turn 1 | . . . 1 Machines Repaired . | . . . . Machines Dismantled . | . . . . Machines Sabotaged . | . . . . Overloaded Fab Kills . | . . . . Hacking | -11 -10 -10 -10 --------- Run | Yrd Mat Min Exi Machines Accessed . | . . . . Terminals . | . . . . Fabricators . | . . . . Repair Stations . | . . . . Recycling Units . | . . . . Scanalyzers . | . . . . Garrison Access . | . . . . Total Hacks . | . . . . Successful . | . . . . Failed . | . . . . Catastrophic . | . . . . Database Lockouts . | . . . . Manual . | . . . . Terminals . | . . . . Fabricators . | . . . . Repair Stations . | . . . . Recycling Units . | . . . . Scanalyzers . | . . . . Garrison Access . | . . . . Terminal Hacks . | . . . . Fabricator Hacks . | . . . . Repair Station Hacks . | . . . . Recycling Unit Hacks . | . . . . Scanalyzer . | . . . . Garrison Access Hacks . | . . . . Unauthorized Hacks . | . . . . Terminals . | . . . . Fabricators . | . . . . Repair Stations . | . . . . Recycling Units . | . . . . Scanalyzers . | . . . . Garrison Access . | . . . . Data Cores Recovered . | . . . . Used . | . . . . Hacking Detections . | . . . . Full Trace Events . | . . . . Feedback Events . | . . . . Feedback Blocked . | . . . . Robot Schematics Acquired . | . . . . Robots Built . | . . . . Authchips . | . . . . Time . | . . . . Total Robot Build Rating . | . . . . Part Schematics Acquired . | . . . . Parts Built . | . . . . Authchips . | . . . . Time . | . . . . Total Part Build Rating . | . . . . Parts Repaired . | . . . . Time . | . . . . Parts Recycled . | . . . . Recycled Matter . | . . . . Retrieved Matter . | . . . . Retrieved Components . | . . . . Parts Scanalyzed . | . . . . Part Schematics Acquired . | . . . . Parts Damaged . | . . . . Bothacking | -11 -10 -10 -10 ------------ Run | Yrd Mat Min Exi Used RIF Installer . | . . . . Robots Hacked 1 | . . . 1 Non-combat . | . . . . Combat 1 | . . . 1 Robot Hacks Applied 1 | . . . 1 parse_system 1 | . . . 1 Relay Couplers Released . | . . . . Fabnet Peak Effective % . | . . . . Robots Rewired . | . . . . Allies Hacked . | . . . . Hacks Repelled . | . . . . Allies | -11 -10 -10 -10 -------- Run | Yrd Mat Min Exi Total Allies . | . . . . Largest Group . | . . . . Highest-Rated Group . | . . . . Highest-Rated Ally . | . . . . Total Orders . | . . . . Ally Attacks . | . . . . Total Damage . | . . . . Kills . | . . . . Allies Corrupted . | . . . . Allies Melted . | . . . . Intel | -11 -10 -10 -10 ------- Run | Yrd Mat Min Exi Robot Analysis Total . | . . . . Derelict Logs Recovered 2 | . . 2 . Drone Launches . | . . . . Drone Recoveries . | . . . . Exploration | -11 -10 -10 -10 ------------- Run | Yrd Mat Min Exi Turns Passed 558 | 59 97 189 213 Spaces Moved 479 | 46 99 182 152 Core 14 | 11 . . 3 Treads . | . . . . Legs . | . . . . Wheels 465 | 35 99 182 149 Hover . | . . . . Flight . | . . . . Fastest Speed 50 | 50 90 90 90 Average Speed 89 | 80 90 90 91 Slowest Speed 100 | 90 90 90 100 Overloaded Moves . | . . . . Propulsion Burnouts . | . . . . Robots Hopped . | . . . . Cave-ins Triggered . | . . . . Exploration Rate (%) 24 | 4 24 28 43 Regions Visited 3 Branch Regions 2 Pre-discovered Areas 1 | . . 1 . Known Exits Taken . | . . . . Unknown Exits Taken 3 | 1 1 1 . Scrap Searched 1 | . . 1 . Spaces Dug . | . . . . Terrain Destroyed 38 | . . . 38 Melee . | . . . . Projectile . | . . . . AOE 38 | . . . 38 Terrain Rammed . | . . . . Walls Destroyed . | . . . . Machines Disabled . | . . . . Actions | -11 -10 -10 -10 --------- Run | Yrd Mat Min Exi Total 553 | 64 104 199 186 Wait 6 | . . 3 3 Move 476 | 45 98 181 152 Hop . | . . . . Pick Up 18 | 10 4 4 . Fast Attach 1 | . . 1 . Attach 12 | 6 1 . 5 Detach . | . . . . Swap 2 | . . 1 1 Drop 5 | 1 . 4 . Fire 32 | 2 1 5 24 Melee 1 | . . . 1 Ram . | . . . . Kick . | . . . . Crush . | . . . . Escape Stasis . | . . . . Rewire . | . . . . Trap . | . . . . Miscellaneous . | . . . . Route ------- -11/Scrapyard -10/Materials (discovered 2 exits: [*Min x2]) -10/Mines (discovered 2 exits: [*Mat] / [*Exi]) -10/Exiles History --------- Turn | Location | Event 9 | -11/Scrapyard | Discovered new exit (range 16) 60 | -11/Scrapyard | Entered Materials 109 | -10/Materials | Discovered new exit (range 14) 140 | -10/Materials | Discovered new exit (range 9) 157 | -10/Materials | Entered Mines 191 | -10/Mines | Learned 4 Materials zone layouts 203 | -10/Mines | Learned location of Zion (-7) 217 | -10/Mines | Received a Rocket Launcher from a helpful Derelict 256 | -10/Mines | Discovered new exit (range 10) 315 | -10/Mines | Build established: Mutant 341 | -10/Mines | Deemed a non-threat by the Exiles lab entrance 342 | -10/Mines | Discovered new exit (range 5) 346 | -10/Mines | Entered Exiles 368 | -10/Exiles | Met 8R-AWN 383 | -10/Exiles | Met EX-HEX 411 | -10/Exiles | Met EX-BIN 455 | -10/Exiles | Attacked by the Exiles 537 | -10/Exiles | Core integrity fell below 50% 550 | -10/Exiles | Core integrity fell below 20% 559 | -10/Exiles | Destroyed by DAS Turret with DAS Cannon Last Messages --------------- 00548_ Jacked 8R-AWN... >>parse_system Reading system data... New IDs: Adv. Myomer Leg Gravity Neutralizer Exp. Heat Sink 8R-AWN's Armor/TH 8R-AWN's Armor/EX AS-neutralizer No. 17b Exp. Targeting Computer 8R-AWN's Boregun 00549_ Penetrated by HV Slug. 00551_ Datajack destroyed. 00551_ Penetrated by HV Slug. 00552_ The unstable cave ceiling collapses. 00553_ Penetrated by HV Slug. 00558_ The unstable cave ceiling collapses. 00558_ HV Slug penetrates Machine. 00558_ Machine disabled. Map ----- +----------------------------------------------------+ | ??????????????????????#""X" "????????????? | | ??????????????????????#" #????????????? | | ??????????????????????#" "# #????????????? | | ??????????????????????#"""""""" #?########???? | | ????????????????????????"####"" #?#"""""""#??? | | ????????????????????????????? " #?#"""""""#??? | | ?????????????????????????????#" #?#"""""""#??? | | ?????????????????????????????#" ###"" """"#??? | | ?????????????????????????????# """"#??? | | ?????????????????????????????# """#??? | | ?????????????????????????????# """#??? | | ?????????????????????????????# """#??? | | ?????????????????????????????# """#??? | | ?????????????????????????????# """#??? | | ????????????????????????????### """"??? | | ????????????????????????????# """#??? | | ????????????????????????????# """""?? | | ????????????????????????????## #??? | | ????????????????????????????# g """"#??? | | ????????????????????????????# # ######??? | | ????????????????????????????# ##???????? | | ???????????????????????###### #????????? | | ???????????????????#"###""""" # #????????? | | ????????????????? """""" " ####?######## | | ?????????????? "" """% #####""""""" | | ?????????????? " "@ " """ " | | ?????????????? "" | | ???????????? " | | ????????????? | | ???????????? | | ????????????? | | ????????????? | | ???????????? ## | | ????????????? ""#### ## ##""" | | ????????????? """#????##?#####""" | | ?????????????? ""#????????????#"""" | | ?????????????? ""?????????????#"" | | ???????????????? ????????????????"""" | | ?????????????????? ???????????????" | | ??????????????????????????????????? | | ??????????????????????????????????? | | ??????????????????????????????????? | | ??????????????????????????????????? " | | ??????????????????????????????????? "" """ | | ?????????????????????????????????????"" " " ""#" | | ??????????????????????????????????????##""" """##" | | ?????????????????????????????????????????#"""???## | | ?????????????????????????????????????????##??????? | | ?????????????????????????????????????????????????? | | ?????????????????????????????????????????????????? | +----------------------------------------------------+ Best States ------------- Heat Dissipation 25 Energy Generation 10 Energy Capacity 250 Matter Stores 300 Matter Capacity 300 Sight Range 16 Terrain Scan Density 10 Evasion (%) 42 Targeting Accuracy 5 Item Schematics ----------------- None Robot Schematics ------------------ None Fabricated ------------ Nothing Alien Tech Used ----------------- None Achievements -------------- None Challenges ------------ None Game ------ Seed TrapBiomechanicalFacilitator Manual? 0 Play Time 00:07:36 Cumulative 219.6 hours Start 2024.10.03 @ 01:06:20 End 2024.10.03 @ 01:11:16 Sessions 1 Manual Loads 0 Difficulty Rogue Special Mode None Game No. 181 Rogue 172 Adventurer 9 Explorer 0 Win Type - Total 1 Types 1/0/0/0/0/0/0/0/0 Lore% 74 Gallery% 72 Achievement% 58 Wizard Run 0 Options --------- Layout 1 ASCII 0 Keyboard 0 Movement Numpad Keybinds 0 Fullscreen 1 Font 24/Smallcaps Map View 50x35 Zoom Use 0% Tactical HUD 1 Map Filters NONE Filters NONE Steam 1 RUN: 72350795-3c73-4741-9d7e-5fb608c4b5f1